Workbook

Sheet úvodní list
A23: Návrh ceny pro vodné
A26: rok 2023
A29: Zbelítov
M32: do tohoto řádku (v úvodním listu) je možné doplnit další text (např. variantu)

Sheet kalkulace(pro obec)
A2: PLÁNOVANÁ KALKULACE CENY VODY (PITNÉ, ODPADNÍ) PRO KALENDÁŘNÍ ROK 2023
B3: PRO OBLAST (LOKALITU) : | E3: A48 | F3: Zbelítov
A5: položka | B5: kalkulační položky | E5: měrná jednotka | F5: voda pitná | H5: voda odpadní
F6: 2022 | G6: 2023 | H6: 2022 | I6: 2023
A7: 1 | B7: 2 | E7: 2a | F7: 3 | G7: 3 | H7: 4 | I7: 4
A8: 1. | B8: Materiál | E8: Kč | F8: =+F9+F10+F11+F12 -> 121800 | G8: =+G9+G10+G11+G12 -> 139293 | H8: =+H9+H10+H11+H12 -> 0 | I8: =+I9+I10+I11+I12 -> 0
A9: 1.1 | B9: surová voda podzemní + povrchová | E9: Kč | F9: 0 | G9: 0 | H9: 0 | I9: 0
A10: 1.2 | B10: pitná voda převzatá + odpadní voda předaná k čištění | E10: Kč | F10: 113800 | G10: 131293 | H10: 0 | I10: 0
A11: 1.3 | B11: chemikálie | E11: Kč | F11: 0 | G11: 0 | H11: 0 | I11: 0
A12: 1.4 | B12: ostatní materiál | E12: Kč | F12: 8000 | G12: 8000 | H12: 0 | I12: 0
A13: 2. | B13: Energie | E13: Kč | F13: =+F14+F15 -> 19000 | G13: =+G14+G15 -> 20000 | H13: 0 | I13: 0
A14: 2.1 | B14: elektrická energie | E14: Kč | F14: 14000 | G14: 15000 | H14: 0 | I14: 0
A15: 2.2 | B15: Ostatní energie (plyn, pev. a kapal. ener., PHM) | E15: Kč | F15: 5000 | G15: 5000 | H15: 0 | I15: 0
A16: 3. | B16: Mzdy | E16: Kč | F16: =SUM(F17:F18) -> 0 | G16: =SUM(G17:G18) -> 0 | H16: 0 | I16: 0
A17: 3.1 | B17: přímé mzdy | E17: Kč | F17: 0 | G17: 0 | H17: 0 | I17: 0
A18: 3.2 | B18: ostatní osobní náklady | E18: Kč | F18: 0 | G18: 0 | H18: 0 | I18: 0
A19: 4. | B19: Ostatní přímé náklady | E19: Kč | F19: =+F20+F21+F22+F23 -> 36120 | G19: =+G20+G21+G22+G23 -> 39260 | H19: =+H20+H21+H22+H23 -> 0 | I19: =+I20+I21+I22+I23 -> 0
A20: 4.1 | B20: odpisy infrastrukturního majetku (smluvní investice) | E20: Kč | F20: 0 | G20: 0 | H20: 0 | I20: 0
A21: 4.2 | B21: obnovující opravy infrastrukturního majetku | E21: Kč | F21: 0 | G21: 0 | H21: 0 | I21: 0
A22: 4.3 | B22: opravy infrastrukturního majetku ostatní | E22: Kč | F22: 33620 | G22: 36760 | H22: 0 | I22: 0
A23: 4.4 | B23: pachtovné / nájemné infrastrukturního majetku | E23: Kč | F23: 2500 | G23: 2500 | H23: 0 | I23: 0
A24: 5. | B24: Jiné provozní náklady | E24: Kč | F24: =+F25+F26+F27 -> 18814 | G24: =+G25+G26+G27 -> 23514 | H24: =+H25+H26+H27 -> 0 | I24: =+I25+I26+I27 -> 0
A25: 5.1 | B25: poplatky za vypouštění odpadních vod | E25: Kč | F25: 0 | G25: 0 | H25: 0 | I25: 0
A26: 5.2 | B26: ostatní provozní náklady externí | E26: Kč | F26: 2900 | G26: 4900 | H26: 0 | I26: 0
A27: 5.3 | B27: ostatní provozní náklady ve vlastní režii | E27: Kč | F27: 15914 | G27: 18614 | H27: 0 | I27: 0
A28: 6. | B28: finanční náklady | E28: Kč | F28: 0 | G28: 0 | H28: 0 | I28: 0
A29: 7. | B29: finanční výnosy | E29: Kč | F29: 0 | G29: 0 | H29: 0 | I29: 0
A30: 8. | B30: výrobní režie | E30: Kč | F30: 5252 | G30: 6032 | H30: 0 | I30: 0
A31: 9. | B31: správní režie | E31: Kč | F31: 8008 | G31: 9204 | H31: 0 | I31: 0
A32: 10. | B32: úplné vlastní náklady (ÚVN) | E32: Kč | F32: =+F8+F13+F16+F19+F24+F28+F29+F30+F31 -> 208994 | G32: =+G8+G13+G16+G19+G24+G28+G29+G30+G31 -> 237303 | H32: =+H8+H13+H16+H19+H24+H28+H29+H30+H31 -> 0 | I32: =+I8+I13+I16+I19+I24+I28+I29+I30+I31 -> 0
A34: A | B34: počet pracovníků | E34: osob
A35: B | B35: voda pitná fakturovaná | E35: m3 | F35: 5200 | G35: 5200
A36: C | B36: - z toho domácnosti | E36: m3
A37: D | B37: voda odpadní odváděná fakturovaná | E37: m3 | H37: 0 | I37: 0
A38: E | B38: - z toho domácnosti | E38: m3
A39: F | B39: voda srážková fakturovaná | E39: m3
A40: G | B40: voda odpadní čištěná | E40: m3
A41: H | B41: pitná nebo odpadní voda převzatá | E41: m3 | F41: 6500 | G41: 6500
A42: I | B42: pitná nebo odpadní voda předaná | E42: m3
A44: 11. | B44: Jednotkové náklady na 1 m3 | E44: Kč / m3 | F44: =IFERROR(F32/F35,0) -> 40.19115385 | G44: =IFERROR(G32/G35,0) -> 45.63519231 | H44: =IFERROR(H32/(H37+H39),0) -> 0 | I44: =IFERROR(I32/(I37+I39),0) -> 0
A45: 12. | B45: Vyrovnávací položky | E45: Kč | F45: =SUM(F46:F47) -> 0 | G45: =SUM(G46:G47) -> 0 | H45: =SUM(H46:H47) -> 0 | I45: =SUM(I46:I47) -> 0
A46: 12.1 | B46: Vyrovnávací položka z roku t-2 dle platných pravidel | E46: Kč | F46: 0 | G46: 0 | H46: 0 | I46: 0
A47: 12.2 | B47: Finanční vyp. rozdílu kalkulací prováděných podle OPŽP | E47: Kč | F47: 0 | G47: 0 | H47: 0 | I47: 0
A48: 13. | B48: ÚVN + vyrovnávací položky | E48: Kč | F48: =F32+F45 -> 208994 | G48: =G32+G45 -> 237303 | H48: 0 | I48: 0
A49: 14. | B49: Kalkulační zisk ( ztráta ) | E49: Kč | F49: 20899 | G49: 22230.3 | H49: 0 | I49: 0
A50: 15. | B50: podíl zisku (ztrát) z ÚVN včetně vyrovnávacích položek | E50: % | F50: =IFERROR(F49/F48,0) -> 0.09999808607 | G50: 0.0936789674 | H50: =IFERROR(H49/H48,0) -> 0 | I50: =IFERROR(I49/I48,0) -> 0
A51: 18. | B51: Celkem ÚVN + VP + zisk ( ztráta ) = Tržby | E51: Kč | F51: =F49+F48 -> 229893 | G51: =G49+G48 -> 259533.3 | H51: 0 | I51: 0
A52: 19. | B52: Fakturace v m3 celkem | E52: m3 | F52: =F35 -> 5200 | G52: =G35 -> 5200 | H52: =H37+H39 -> 0 | I52: =I37+I39 -> 0
A53: 20. | B53: UPLATŇOVANÁ CENA pro vodné, stočné | E53: Kč / m3 | F53: =IFERROR(TRUNC(F51/F52,2),0) -> 44.21 | G53: =IFERROR(TRUNC(G51/G52,2),0) -> 49.91 | H53: =IFERROR(TRUNC(H51/H52,2),0) -> 0 | I53: =IFERROR(TRUNC(I51/I52,2),0) -> 0
A54: 21. | B54: UPLATŇOVANÁ CENA pro vodné, stočné + DPH | E54: Kč / m3 | F54: =F53*(1+10%) -> 48.631 | G54: =G53*(1+10%) -> 54.901 | H54: =H53*(1+10%) -> 0 | I54: =I53*(1+10%) -> 0
A56: x | B56: meziroční změna ceny ( v Kč / m3 bez DPH ) | E56: Kč / m3 | F56: x | G56: =G53-F53 -> 5.7 | H56: x | I56: =I53-H53 -> 0
A57: x | B57: meziroční změna ceny ( v % ) | E57: % | F57: x | G57: =IFERROR(G56/F53,0) -> 0.1289301063 | H57: x | I57: =IFERROR(I56/H53,0) -> 0
A58: x | B58: Porovnání celkové ceny (2022/2023) bez DPH | F58: =+F53+H53 -> 44.21 | G58: =+G53+I53 -> 49.91 | H58: =+G58-F58 -> 5.7 | I58: =+IFERROR(H58/F58,0) -> 0.1289301063
A60: PLÁNOVANÁ CENA PRO VODNÉ A PRO STOČNÉ PŘI DVOUSLOŽKOVÉ FORMĚ PRO KALENDÁŘNÍ ROK 2023
B62: text | E62: měrná jednotka | F62: voda pitná | H62: voda odpadní
F63: 2022 | G63: 2023 | H63: 2022 | I63: 2023
A64: 1 | B64: 2 | E64: 2a | F64: 3 | G64: 3 | H64: 4 | I64: 4
A65: 23. | B65: pevná složka - (ÚVN + vyrovnávací položky + kalkulační zisk / ztráta) | E65: Kč | F65: 25200 | G65: 29484 | H65: 0 | I65: 0
A66: 23a. | B66: - podíl z celkových ÚVN včetně vyrovnávací položky a kalkulačního zisku / ztráty | E66: % | F66: =IFERROR(+(F65/F51)*100,"") -> 10.96162128 | G66: =IFERROR(+(G65/G51)*100,"") -> 11.3603919 | H66: =IFERROR(+(H65/H51)*100," ") ->  | I66: =IFERROR(+(I65/I51)*100,"") -> 
A67: 24. | B67: pohyblivá složka - (ÚVN + vyrovnávací položky + kalkulační zisk / ztráta) | E67: Kč | F67: =IF(F65<>0,F51-F65,"") -> 204693 | G67: =IF(G65<>0,G51-G65,"") -> 230049.3 | H67: =IF(H65<>0,H51-H65,0) -> 0 | I67: =IF(I65<>0,I51-I65,"") -> 
A68: 24a. | B68: - z toho: ÚVN + vyrovnávací položky | E68: Kč | F68: =IFERROR(IF(F66<>0,F48*(1-(F66/100)),""),"") -> 186084.8692 | G68: =IFERROR(IF(G66<>0,G48*(1-(G66/100)),""),"") -> 210344.4492 | H68: =IFERROR(IF(H66<>0,H48*(1-(H66/100)),""),"") ->  | I68: =IFERROR(IF(I66<>0,I48*(1-(I66/100)),""),"") -> 
A69: 24b. | B69: kalkulační zisk / ztráta | E69: Kč | F69: =IFERROR(+F67-F68,"") -> 18608.13077 | G69: =IFERROR(+G67-G68,"") -> 19704.8508 | H69: =IFERROR(+H67-H68,"") ->  | I69: =IFERROR(+I67-I68,"") -> 
A70: 25. | B70: uplatňovaná cena pohyblivé složky | E70: Kč / m3 | F70: =IFERROR(TRUNC(+F67/F52,2),0) -> 39.36 | G70: =IFERROR(TRUNC(+G67/G52,2),0) -> 44.24 | H70: =IFERROR(TRUNC(+H67/H52,2),0) -> 0 | I70: =IFERROR(TRUNC(+I67/I52,2),0) -> 0
A71: 26. | B71: uplatňovaná cena pohyblivé složky + DPH | E71: Kč / m3 | F71: =IFERROR(F70*(1+#REF!),"") ->  | G71: =IFERROR(G70*(1+#REF!),"") ->  | H71: =IFERROR(H70*(1+#REF!),"") ->  | I71: =IFERROR(I70*(1+#REF!),"") -> 
A72: 27. | B72: technické parametry pevné složky podle § 33 odst. 1 vyhlášky č. 428/2001 Sb. ( a, b, c) | F72: a | G72: a | H72: a | I72: a
A74: x | B74: Porovnání celkové ceny (2022/2023) bez DPH | F74: =+F70+H70 -> 39.36 | G74: =+G70+I70 -> 44.24 | H74: =+G74-F74 -> 4.88 | I74: =+IFERROR(H74/F74,0) -> 0.1239837398
A76: PLÁNOVANÉ PEVNÉ SLOŽKY PRO VODNÉ A PRO STOČNÉ DLE JEDNOTLIVÝCH KATEGORIÍ
A77: PODLE HODNOTY PRŮTOKU VODOMĚRU Q3 ( m3 / h ) v Kč bez DPH
A78: =CONCATENATE("PRO ", "OBEC ",$F$3) -> PRO OBEC Zbelítov
A80: Vodoměry jsou členěny dle kategorií (skupin). Převážná část VDM (A) v síti je bez speciálních požadavků na množství odebrané vody a požární zabezpečení. S každou další kategorií je specifikace upravena dle daných podmínek. | C80: platba celkem | E80: kategorie VDM | F80: voda pitná | H80: voda odpadní
C81: 2022 | D81: 2023 | F81: 2022 | G81: 2023 | H81: 2022 | I81: 2023
C82: =F82+H82 -> 252 | D82: =G82+I82 -> 252 | E82: A | F82: 252 | G82: 252 | H82: 0 | I82: 0
C83: =F83+H83 -> 0 | D83: 0 | E83: B | F83: 0 | G83: 0 | H83: 0 | I83: 0
C84: 0 | D84: 0 | E84: C | F84: 0 | G84: 0 | H84: 0 | I84: 0
C85: 0 | D85: 0 | E85: D | F85: 0 | G85: 0 | H85: 0 | I85: 0
C86: 0 | D86: 0 | E86: E | F86: 0 | G86: 0 | H86: 0 | I86: 0
C87: 0 | D87: 0 | E87: G
C88: 0 | D88: 0 | E88: CH
C89: pevná složka stočného z jiných zdrojů v Kč / m3 | H89: =+H53-H70 -> 0 | I89: =+I53-I70 -> 0

Sheet voda převzatá JVS
A1: Vliv nárůstu ceny vody převzaté z JVS:
B2: 2022 | C2: 2023 | D2: rozdíl
A3: voda převzatá v m3 | B3: 6500 | C3: 6500 | D3: =C3-B3 -> 0
A4: cena pohyblivé složky | B4: 15.04 | C4: 17.23 | D4: =C4-B4 -> 2.19
A5: pohyblivá složka celkem | B5: =B3*B4 -> 97760 | C5: =C3*C4 -> 111995 | D5: =C5-B5 -> 14235
A6: pevná složka | B6: 16043 | C6: 19298 | D6: =C6-B6 -> 3255
A7: voda převzatá v Kč celkem | B7: =B6+B5 -> 113803 | C7: =C6+C5 -> 131293 | D7: =C7-B7 -> 17490
